[Event "*** SCC Grand Prix: Titled Tuesday Blitz"]
[Site "Chess.com"]
[Date "2020.06.09"]
[Round "2"]
[White "diablanni"]
[Black "CHESSMASTER759"]
[Result "1/2-1/2"]
[WhiteElo "2338"]
[BlackElo "2600"]
[TimeControl "180+1"]
[EndTime "9:15:58 PDT"]
[Termination "Game drawn by repetition"]

1. e4 {[%clk 0:03:00.5]} 1... d6 {[%clk 0:02:59.7]} 2. d4 {[%clk 0:02:59.7]}
2... Nf6 {[%clk 0:03:00.1]} 3. Nc3 {[%clk 0:02:58.9]} 3... e5 {[%clk 0:03:00.5]}
4. dxe5 {[%clk 0:02:56.6]} 4... dxe5 {[%clk 0:03:00.6]} 5. Qxd8+ {[%clk
0:02:56.5]} 5... Kxd8 {[%clk 0:03:00.9]} 6. Bc4 {[%clk 0:02:57.1]} 6... Ke8
{[%clk 0:03:00.4]} 7. Nge2 {[%clk 0:02:45.6]} 7... c6 {[%clk 0:02:59.2]} 8. a3
{[%clk 0:02:36.2]} 8... a5 {[%clk 0:02:54.9]} 9. Be3 {[%clk 0:02:28.9]} 9...
Nbd7 {[%clk 0:02:54.2]} 10. f3 {[%clk 0:02:22.6]} 10... Bc5 {[%clk 0:02:53.7]}
11. Kf2 {[%clk 0:02:20.8]} 11... Ke7 {[%clk 0:02:52.5]} 12. Nc1 {[%clk
0:02:10.6]} 12... b5 {[%clk 0:02:51.5]} 13. Bb3 {[%clk 0:02:08.7]} 13... Bxe3+
{[%clk 0:02:50.1]} 14. Kxe3 {[%clk 0:02:08.3]} 14... Nc5 {[%clk 0:02:51]} 15.
Nd3 {[%clk 0:02:08.4]} 15... Nxb3 {[%clk 0:02:48.1]} 16. cxb3 {[%clk 0:02:08]}
16... Be6 {[%clk 0:02:47.7]} 17. b4 {[%clk 0:02:07.6]} 17... Nd7 {[%clk
0:02:47.2]} 18. Rhd1 {[%clk 0:01:55.7]} 18... Bc4 {[%clk 0:02:46.1]} 19. Nc5
{[%clk 0:01:54.9]} 19... Nxc5 {[%clk 0:02:43.3]} 20. bxc5 {[%clk 0:01:51.4]}
20... b4 {[%clk 0:02:41.5]} 21. Na4 {[%clk 0:01:40.4]} 21... Bb3 {[%clk
0:02:39.8]} 22. Nb6 {[%clk 0:01:39.9]} 22... Bxd1 {[%clk 0:02:08.1]} 23. Nxa8
{[%clk 0:01:38.1]} 23... bxa3 {[%clk 0:02:07.4]} 24. Nb6 {[%clk 0:01:34.1]}
24... Rd8 {[%clk 0:01:47.9]} 25. Rxa3 {[%clk 0:01:32.6]} 25... a4 {[%clk
0:01:47.8]} 26. Rd3 {[%clk 0:01:25.3]} 26... g6 {[%clk 0:01:31.5]} 27. Rxd8
{[%clk 0:01:18.2]} 27... Kxd8 {[%clk 0:01:31.2]} 28. Kd2 {[%clk 0:01:16.9]}
28... Bb3 {[%clk 0:01:31.1]} 29. Kc3 {[%clk 0:01:16.2]} 29... Bd1 {[%clk
0:01:32]} 30. Kd2 {[%clk 0:01:15.7]} 30... Bb3 {[%clk 0:01:31.4]} 31. Kc3 {[%clk
0:01:14.5]} 31... Bd1 {[%clk 0:01:29.9]} 32. Kd2 {[%clk 0:01:02.9]} 1/2-1/2

[Event "*** SCC Grand Prix: Titled Tuesday Blitz"]
[Site "Chess.com"]
[Date "2020.06.09"]
[Round "2"]
[White "Vuk2000"]
[Black "smshk35"]
[Result "1-0"]
[WhiteElo "2609"]
[BlackElo "2331"]
[TimeControl "180+1"]
[EndTime "9:16:00 PDT"]
[Termination "Vuk2000 won by resignation"]

1. d4 {[%clk 0:03:00.9]} 1... Nf6 {[%clk 0:03:00]} 2. Bg5 {[%clk 0:03:01.2]}
2... e6 {[%clk 0:02:59.4]} 3. e4 {[%clk 0:03:00]} 3... h6 {[%clk 0:02:59.4]} 4.
Bxf6 {[%clk 0:03:00.6]} 4... Qxf6 {[%clk 0:03:00.3]} 5. c3 {[%clk 0:03:01]} 5...
d6 {[%clk 0:02:59.8]} 6. Bd3 {[%clk 0:03:01.5]} 6... g5 {[%clk 0:02:55.7]} 7.
Ne2 {[%clk 0:03:01.3]} 7... Bg7 {[%clk 0:02:55.5]} 8. O-O {[%clk 0:03:01.7]}
8... e5 {[%clk 0:02:55.9]} 9. Na3 {[%clk 0:03:01.3]} 9... Nd7 {[%clk 0:02:53.5]}
10. Ng3 {[%clk 0:02:59.8]} 10... Nf8 {[%clk 0:02:51.8]} 11. Nh5 {[%clk
0:02:51.4]} 11... Qg6 {[%clk 0:02:48.6]} 12. Nb5 {[%clk 0:02:51.9]} 12... Kd8
{[%clk 0:02:35.5]} 13. Ng3 {[%clk 0:02:42.2]} 13... a6 {[%clk 0:02:33]} 14. Na3
{[%clk 0:02:41.9]} 14... Ne6 {[%clk 0:02:16.4]} 15. Nc2 {[%clk 0:02:41.8]} 15...
Nf4 {[%clk 0:02:15.6]} 16. Bc4 {[%clk 0:02:32.2]} 16... h5 {[%clk 0:02:09.7]}
17. Ne3 {[%clk 0:02:32]} 17... h4 {[%clk 0:01:41.5]} 18. Ngf5 {[%clk 0:02:30.7]}
18... Bxf5 {[%clk 0:01:29.4]} 19. exf5 {[%clk 0:02:13.9]} 19... Qf6 {[%clk
0:01:27.4]} 20. Qf3 {[%clk 0:02:05.1]} 20... exd4 {[%clk 0:01:01.8]} 21. Qxb7
{[%clk 0:02:01.5]} 21... dxe3 {[%clk 0:00:53.6]} 22. Qxa8+ {[%clk 0:02:00.7]}
22... Kd7 {[%clk 0:00:54]} 23. Qxa6 {[%clk 0:01:52.7]} 23... e2 {[%clk
0:00:44.8]} 24. Bxe2 {[%clk 0:01:48.6]} 24... Rb8 {[%clk 0:00:37.8]} 25. Bb5+
{[%clk 0:01:47.1]} 25... Kd8 {[%clk 0:00:34.2]} 26. Rfe1 {[%clk 0:01:46.8]} 1-0

[Event "*** SCC Grand Prix: Titled Tuesday Blitz"]
[Site "Chess.com"]
[Date "2020.06.09"]
[Round "2"]
[White "Ekka83"]
[Black "WiktoriaPOL"]
[Result "1-0"]
[WhiteElo "2407"]
[BlackElo "2028"]
[TimeControl "180+1"]
[EndTime "9:16:03 PDT"]
[Termination "Ekka83 won by resignation"]

1. e4 {[%clk 0:03:00.9]} 1... c5 {[%clk 0:02:59.9]} 2. Nf3 {[%clk 0:03:00.6]}
2... d6 {[%clk 0:02:59.7]} 3. d4 {[%clk 0:02:57.1]} 3... cxd4 {[%clk 0:03:00.6]}
4. Qxd4 {[%clk 0:02:57.6]} 4... a6 {[%clk 0:02:58.9]} 5. Bc4 {[%clk 0:02:54.9]}
5... Nc6 {[%clk 0:02:56.9]} 6. Qd3 {[%clk 0:02:54.5]} 6... Nf6 {[%clk
0:02:54.9]} 7. Nc3 {[%clk 0:02:54.2]} 7... g6 {[%clk 0:02:48.6]} 8. Bg5 {[%clk
0:02:52.5]} 8... Bg7 {[%clk 0:02:47.5]} 9. O-O-O {[%clk 0:02:52.6]} 9... Qc7
{[%clk 0:02:40.2]} 10. Kb1 {[%clk 0:02:51.8]} 10... O-O {[%clk 0:02:34.8]} 11.
Bxf6 {[%clk 0:02:49.4]} 11... Bxf6 {[%clk 0:02:31]} 12. Nd5 {[%clk 0:02:49.2]}
12... Qa5 {[%clk 0:01:51]} 13. Nxf6+ {[%clk 0:02:48.4]} 13... exf6 {[%clk
0:01:50.3]} 14. Qxd6 {[%clk 0:02:47.3]} 14... Ne5 {[%clk 0:01:39.9]} 15. Nxe5
{[%clk 0:02:43]} 15... fxe5 {[%clk 0:01:39.8]} 16. Rd5 {[%clk 0:02:37.8]} 16...
Qa4 {[%clk 0:01:33.5]} 17. b3 {[%clk 0:02:17]} 17... Qc6 {[%clk 0:01:20.1]} 18.
Qxc6 {[%clk 0:02:16.3]} 18... bxc6 {[%clk 0:01:18.5]} 19. Rxe5 {[%clk
0:02:16.6]} 19... Bd7 {[%clk 0:01:01.3]} 20. Re7 {[%clk 0:02:16.3]} 20... Bg4
{[%clk 0:00:52.8]} 21. f3 {[%clk 0:02:16.3]} 21... Be6 {[%clk 0:00:52.2]} 22.
Bxe6 {[%clk 0:02:15.1]} 22... fxe6 {[%clk 0:00:51.5]} 23. Rd1 {[%clk 0:02:13]}
23... Rf7 {[%clk 0:00:49.4]} 24. Rxe6 {[%clk 0:02:12.3]} 24... c5 {[%clk
0:00:43.7]} 25. Rdd6 {[%clk 0:02:06.9]} 25... a5 {[%clk 0:00:41.2]} 26. Ra6
{[%clk 0:02:05.5]} 26... Rfa7 {[%clk 0:00:38.8]} 27. Re8+ {[%clk 0:02:02.1]}
27... Rxe8 {[%clk 0:00:34.6]} 28. Rxa7 {[%clk 0:02:02.5]} 28... Rc8 {[%clk
0:00:34]} 29. Rxa5 {[%clk 0:02:02.1]} 29... c4 {[%clk 0:00:33.6]} 30. Ra7 {[%clk
0:02:00.3]} 30... cxb3 {[%clk 0:00:32.4]} 31. axb3 {[%clk 0:02:01.2]} 31... Rd8
{[%clk 0:00:28.3]} 32. Kc1 {[%clk 0:02:00.9]} 1-0

[Event "*** SCC Grand Prix: Titled Tuesday Blitz"]
[Site "Chess.com"]
[Date "2020.06.09"]
[Round "2"]
[White "Enriquack"]
[Black "VitaliyBernadskiy"]
[Result "0-1"]
[WhiteElo "2414"]
[BlackElo "2697"]
[TimeControl "180+1"]
[EndTime "9:16:05 PDT"]
[Termination "VitaliyBernadskiy won by resignation"]

1. e4 {[%clk 0:03:00.9]} 1... c5 {[%clk 0:02:55.5]} 2. Nf3 {[%clk 0:03:00.6]}
2... Nc6 {[%clk 0:02:56.1]} 3. Bb5 {[%clk 0:03:00.8]} 3... g6 {[%clk 0:02:56]}
4. O-O {[%clk 0:03:00.8]} 4... Bg7 {[%clk 0:02:56]} 5. d3 {[%clk 0:03:01.4]}
5... Nf6 {[%clk 0:02:54.7]} 6. Nc3 {[%clk 0:03:01.2]} 6... O-O {[%clk
0:02:54.7]} 7. Bd2 {[%clk 0:03:01.7]} 7... d6 {[%clk 0:02:53.3]} 8. a4 {[%clk
0:02:55.7]} 8... e5 {[%clk 0:02:53.1]} 9. h3 {[%clk 0:02:46.7]} 9... h6 {[%clk
0:02:51.5]} 10. Bc4 {[%clk 0:02:35.4]} 10... Kh7 {[%clk 0:02:51.1]} 11. Nd5
{[%clk 0:02:27.1]} 11... Nxd5 {[%clk 0:02:47.3]} 12. Bxd5 {[%clk 0:02:25.5]}
12... Be6 {[%clk 0:02:38.2]} 13. Bxe6 {[%clk 0:02:15]} 13... fxe6 {[%clk
0:02:39.1]} 14. Be3 {[%clk 0:02:13.3]} 14... b6 {[%clk 0:02:36.5]} 15. Nd2
{[%clk 0:02:11.2]} 15... d5 {[%clk 0:02:36.5]} 16. f3 {[%clk 0:02:11.7]} 16...
h5 {[%clk 0:02:33.3]} 17. Bf2 {[%clk 0:01:38.6]} 17... Bh6 {[%clk 0:02:31.5]}
18. Qe1 {[%clk 0:01:34.4]} 18... Nd4 {[%clk 0:02:27.7]} 19. Rc1 {[%clk
0:01:31.1]} 19... Rc8 {[%clk 0:02:27.5]} 20. Be3 {[%clk 0:01:21.2]} 20... Bg7
{[%clk 0:02:12.3]} 21. c3 {[%clk 0:01:16]} 21... Nc6 {[%clk 0:02:12.5]} 22. Bf2
{[%clk 0:01:05.7]} 22... Bh6 {[%clk 0:02:10.5]} 23. Rd1 {[%clk 0:00:59.6]} 23...
Qf6 {[%clk 0:02:04.5]} 24. Be3 {[%clk 0:00:56.4]} 24... Bg7 {[%clk 0:02:01.4]}
25. Qg3 {[%clk 0:00:53.5]} 25... Qf7 {[%clk 0:01:55]} 26. exd5 {[%clk
0:00:45.1]} 26... exd5 {[%clk 0:01:54.6]} 27. c4 {[%clk 0:00:45.8]} 27... Nb4
{[%clk 0:01:46.2]} 28. cxd5 {[%clk 0:00:41.9]} 28... Nxd5 {[%clk 0:01:43.1]} 29.
Bg5 {[%clk 0:00:39.3]} 29... Nf4 {[%clk 0:01:40.8]} 30. Ne4 {[%clk 0:00:37.8]}
30... Ne2+ {[%clk 0:01:40.7]} 0-1

[Event "*** SCC Grand Prix: Titled Tuesday Blitz"]
[Site "Chess.com"]
[Date "2020.06.09"]
[Round "2"]
[White "Savva09022009"]
[Black "Roza_Idrisova"]
[Result "1-0"]
[WhiteElo "2432"]
[BlackElo "2176"]
[TimeControl "180+1"]
[EndTime "9:16:11 PDT"]
[Termination "Savva09022009 won by checkmate"]

1. d4 {[%clk 0:03:00.9]} 1... d5 {[%clk 0:02:49.8]} 2. Nc3 {[%clk 0:02:59.4]}
2... c6 {[%clk 0:02:49.8]} 3. Bf4 {[%clk 0:02:52.2]} 3... Bf5 {[%clk 0:02:49.2]}
4. f3 {[%clk 0:02:47.7]} 4... e6 {[%clk 0:02:49.3]} 5. e3 {[%clk 0:02:45.9]}
5... h6 {[%clk 0:02:49.3]} 6. g4 {[%clk 0:02:45.2]} 6... Bh7 {[%clk 0:02:45.3]}
7. Bd3 {[%clk 0:02:42.4]} 7... Bxd3 {[%clk 0:02:42.6]} 8. Qxd3 {[%clk 0:02:43]}
8... Nf6 {[%clk 0:02:43.1]} 9. O-O-O {[%clk 0:02:41.8]} 9... Nbd7 {[%clk
0:02:42.5]} 10. Nge2 {[%clk 0:02:41.4]} 10... Be7 {[%clk 0:02:42.5]} 11. h4
{[%clk 0:02:41.2]} 11... a6 {[%clk 0:02:37.4]} 12. g5 {[%clk 0:02:41]} 12... Nh5
{[%clk 0:02:36.7]} 13. g6 {[%clk 0:02:41.2]} 13... f5 {[%clk 0:02:33.4]} 14. e4
{[%clk 0:02:40.4]} 14... O-O {[%clk 0:02:22.1]} 15. e5 {[%clk 0:02:37]} 15... c5
{[%clk 0:02:17.6]} 16. Bh2 {[%clk 0:02:33.3]} 16... f4 {[%clk 0:02:11.7]} 17.
Qd2 {[%clk 0:02:29.2]} 17... Bxh4 {[%clk 0:02:02.7]} 18. Bg1 {[%clk 0:02:24.9]}
18... Rf5 {[%clk 0:01:49]} 19. Kb1 {[%clk 0:02:09.2]} 19... b5 {[%clk
0:01:45.1]} 20. dxc5 {[%clk 0:02:04.7]} 20... Nxe5 {[%clk 0:01:36.1]} 21. Nd4
{[%clk 0:02:03]} 21... Nc4 {[%clk 0:01:23.8]} 22. Qd3 {[%clk 0:01:47.7]} 22...
Re5 {[%clk 0:01:12.7]} 23. Nc6 {[%clk 0:01:42.8]} 23... Qf6 {[%clk 0:01:07.6]}
24. Nxe5 {[%clk 0:01:41.1]} 24... Nxe5 {[%clk 0:01:07.2]} 25. Qd4 {[%clk
0:01:40.1]} 25... Ng3 {[%clk 0:01:01.3]} 26. Rxh4 {[%clk 0:01:37.6]} 26... Qxh4
{[%clk 0:01:00.5]} 27. Qxe5 {[%clk 0:01:37.2]} 27... Re8 {[%clk 0:00:58.3]} 28.
Bd4 {[%clk 0:01:35.2]} 28... Re7 {[%clk 0:00:51.8]} 29. c6 {[%clk 0:01:33.6]}
29... Nf5 {[%clk 0:00:50.3]} 30. c7 {[%clk 0:01:32.9]} 30... Rxc7 {[%clk
0:00:49.5]} 31. Qxc7 {[%clk 0:01:31.7]} 31... Nxd4 {[%clk 0:00:49.4]} 32. Qc8+
{[%clk 0:01:31.9]} 32... Qd8 {[%clk 0:00:47.3]} 33. Qxd8# {[%clk 0:01:32.1]} 1-0

[Event "*** SCC Grand Prix: Titled Tuesday Blitz"]
[Site "Chess.com"]
[Date "2020.06.09"]
[Round "2"]
[White "Caracternin123"]
[Black "Shota_Azaladze"]
[Result "0-1"]
[WhiteElo "2547"]
[BlackElo "2790"]
[TimeControl "180+1"]
[EndTime "9:16:14 PDT"]
[Termination "Shota_Azaladze won by resignation"]

1. d4 {[%clk 0:03:00.9]} 1... g6 {[%clk 0:02:59.8]} 2. Nf3 {[%clk 0:03:00.8]}
2... Bg7 {[%clk 0:03:00.4]} 3. Bg5 {[%clk 0:02:59.1]} 3... d6 {[%clk 0:02:53.6]}
4. Nbd2 {[%clk 0:02:58.9]} 4... Nd7 {[%clk 0:02:53.3]} 5. e4 {[%clk 0:02:57.2]}
5... Ngf6 {[%clk 0:02:52.3]} 6. c3 {[%clk 0:02:57.1]} 6... e5 {[%clk 0:02:51.5]}
7. Bc4 {[%clk 0:02:56.6]} 7... O-O {[%clk 0:02:51.1]} 8. O-O {[%clk 0:02:56.3]}
8... h6 {[%clk 0:02:51.3]} 9. Bh4 {[%clk 0:02:55.5]} 9... c6 {[%clk 0:02:50.8]}
10. Re1 {[%clk 0:02:53.9]} 10... Qc7 {[%clk 0:02:49.2]} 11. Nf1 {[%clk
0:02:53.1]} 11... b5 {[%clk 0:02:46]} 12. Bb3 {[%clk 0:02:52.5]} 12... a6 {[%clk
0:02:45.5]} 13. Qd2 {[%clk 0:02:36.3]} 13... c5 {[%clk 0:02:37.7]} 14. dxe5
{[%clk 0:02:35.2]} 14... dxe5 {[%clk 0:02:37.5]} 15. Bd5 {[%clk 0:02:07.8]}
15... Nxd5 {[%clk 0:02:36.5]} 16. exd5 {[%clk 0:02:08.7]} 16... Qd6 {[%clk
0:02:26]} 17. a4 {[%clk 0:01:40.5]} 17... Bb7 {[%clk 0:02:25.3]} 18. Qe2 {[%clk
0:01:37.7]} 18... c4 {[%clk 0:02:22.2]} 19. Bg3 {[%clk 0:01:32]} 19... Rae8
{[%clk 0:02:05.6]} 20. Rad1 {[%clk 0:01:20.6]} 20... f5 {[%clk 0:01:55.8]} 21.
h4 {[%clk 0:01:20.6]} 21... f4 {[%clk 0:01:54.4]} 22. Bh2 {[%clk 0:01:19.9]}
22... Nc5 {[%clk 0:01:54.5]} 23. N1d2 {[%clk 0:01:15.8]} 23... Qxd5 {[%clk
0:01:46.5]} 24. axb5 {[%clk 0:01:14]} 24... axb5 {[%clk 0:01:46.1]} 25. Nb3
{[%clk 0:00:53.6]} 25... Nd3 {[%clk 0:01:44.4]} 26. Nc1 {[%clk 0:00:53.7]} 26...
e4 {[%clk 0:01:44.2]} 27. Nxd3 {[%clk 0:00:45.1]} 27... cxd3 {[%clk 0:01:40.9]}
0-1

[Event "*** SCC Grand Prix: Titled Tuesday Blitz"]
[Site "Chess.com"]
[Date "2020.06.09"]
[Round "2"]
[White "TrickyFortem"]
[Black "Jumbo"]
[Result "0-1"]
[WhiteElo "2374"]
[BlackElo "2825"]
[TimeControl "180+1"]
[EndTime "9:16:21 PDT"]
[Termination "Jumbo won by resignation"]

1. d4 {[%clk 0:03:00.6]} 1... Nf6 {[%clk 0:02:59.5]} 2. c4 {[%clk 0:03:01.1]}
2... e6 {[%clk 0:02:58.5]} 3. Nf3 {[%clk 0:03:01.5]} 3... Bb4+ {[%clk
0:02:56.2]} 4. Nbd2 {[%clk 0:03:01.2]} 4... O-O {[%clk 0:02:55]} 5. g3 {[%clk
0:03:01.1]} 5... b6 {[%clk 0:02:50.9]} 6. Bg2 {[%clk 0:03:01.3]} 6... Bb7 {[%clk
0:02:49.3]} 7. O-O {[%clk 0:03:01.3]} 7... a5 {[%clk 0:02:40.4]} 8. Qc2 {[%clk
0:03:00.5]} 8... d5 {[%clk 0:02:38.5]} 9. cxd5 {[%clk 0:02:58.7]} 9... exd5
{[%clk 0:02:37.6]} 10. Ne5 {[%clk 0:02:55.1]} 10... Re8 {[%clk 0:02:32.4]} 11.
Ndf3 {[%clk 0:02:53.8]} 11... h6 {[%clk 0:02:32.6]} 12. Nh4 {[%clk 0:02:50.4]}
12... Nbd7 {[%clk 0:02:23.1]} 13. Nc6 {[%clk 0:02:41]} 13... Bxc6 {[%clk
0:01:54.1]} 14. Qxc6 {[%clk 0:02:41.9]} 14... Rxe2 {[%clk 0:01:54.4]} 15. Bf4
{[%clk 0:02:41.5]} 15... Rc8 {[%clk 0:01:48.8]} 16. a3 {[%clk 0:02:37.2]} 16...
Bf8 {[%clk 0:01:45.5]} 17. b4 {[%clk 0:02:36.4]} 17... g5 {[%clk 0:01:41.3]} 18.
Nf5 {[%clk 0:02:23.9]} 18... gxf4 {[%clk 0:01:37.1]} 19. gxf4 {[%clk 0:02:24.8]}
19... Re6 {[%clk 0:01:26.7]} 20. Qc3 {[%clk 0:02:19.1]} 20... Ne4 {[%clk
0:01:19.9]} 21. Bxe4 {[%clk 0:02:16]} 21... dxe4 {[%clk 0:01:19.9]} 22. Kh1
{[%clk 0:02:14.3]} 22... Rg6 {[%clk 0:01:15.1]} 23. Rg1 {[%clk 0:02:11]} 23...
Nf6 {[%clk 0:01:15.1]} 24. Qh3 {[%clk 0:01:52.4]} 24... Kh7 {[%clk 0:01:05]} 25.
Nh4 {[%clk 0:01:39.4]} 25... Rxg1+ {[%clk 0:01:01.8]} 26. Rxg1 {[%clk
0:01:40.3]} 26... Qd7 {[%clk 0:01:02.1]} 27. Nf5 {[%clk 0:01:37.1]} 27... axb4
{[%clk 0:00:51]} 28. axb4 {[%clk 0:01:36.7]} 28... e3 {[%clk 0:00:45.6]} 29.
fxe3 {[%clk 0:01:34.8]} 29... Qd5+ {[%clk 0:00:45.3]} 30. Rg2 {[%clk 0:01:33.5]}
30... Ra8 {[%clk 0:00:45.5]} 0-1

[Event "*** SCC Grand Prix: Titled Tuesday Blitz"]
[Site "Chess.com"]
[Date "2020.06.09"]
[Round "2"]
[White "Borsuk_Konstantin"]
[Black "Denis_Palkovich"]
[Result "1-0"]
[WhiteElo "2562"]
[BlackElo "2314"]
[TimeControl "180+1"]
[EndTime "9:16:21 PDT"]
[Termination "Borsuk_Konstantin won by resignation"]

1. d4 {[%clk 0:03:00.9]} 1... Nf6 {[%clk 0:02:58.4]} 2. c4 {[%clk 0:03:00.6]}
2... c5 {[%clk 0:02:58.3]} 3. d5 {[%clk 0:03:00.4]} 3... b5 {[%clk 0:02:58.1]}
4. cxb5 {[%clk 0:03:00.7]} 4... a6 {[%clk 0:02:57.9]} 5. b6 {[%clk 0:03:00.6]}
5... e6 {[%clk 0:02:54.7]} 6. Nc3 {[%clk 0:03:00.2]} 6... Qxb6 {[%clk
0:02:28.2]} 7. e4 {[%clk 0:02:51.3]} 7... Bb7 {[%clk 0:02:14.4]} 8. Nf3 {[%clk
0:02:35.2]} 8... Be7 {[%clk 0:02:07.5]} 9. Be2 {[%clk 0:02:10.1]} 9... O-O
{[%clk 0:02:07.3]} 10. O-O {[%clk 0:02:05.6]} 10... d6 {[%clk 0:02:02]} 11. dxe6
{[%clk 0:01:52.8]} 11... fxe6 {[%clk 0:02:00.4]} 12. Bc4 {[%clk 0:01:52.7]}
12... d5 {[%clk 0:01:42.4]} 13. exd5 {[%clk 0:01:51.6]} 13... exd5 {[%clk
0:01:42.5]} 14. Nxd5 {[%clk 0:01:50.9]} 14... Nxd5 {[%clk 0:01:41.8]} 15. Bxd5+
{[%clk 0:01:50.4]} 15... Kh8 {[%clk 0:01:42.4]} 16. Bg5 {[%clk 0:01:19.8]} 16...
Bxg5 {[%clk 0:01:03.5]} 17. Nxg5 {[%clk 0:01:19.2]} 17... Nc6 {[%clk 0:00:52.8]}
18. Qh5 {[%clk 0:00:57.6]} 18... h6 {[%clk 0:00:52.4]} 19. Qg6 {[%clk
0:00:57.1]} 1-0

[Event "*** SCC Grand Prix: Titled Tuesday Blitz"]
[Site "Chess.com"]
[Date "2020.06.09"]
[Round "2"]
[White "XiaoKangZhong"]
[Black "Iball95"]
[Result "0-1"]
[WhiteElo "2399"]
[BlackElo "2693"]
[TimeControl "180+1"]
[EndTime "9:16:26 PDT"]
[Termination "Iball95 won by resignation"]

1. e4 {[%clk 0:03:00.9]} 1... c5 {[%clk 0:02:58.9]} 2. c3 {[%clk 0:03:00]} 2...
g6 {[%clk 0:02:58.5]} 3. d4 {[%clk 0:02:59]} 3... cxd4 {[%clk 0:02:58.7]} 4.
cxd4 {[%clk 0:02:59.9]} 4... d5 {[%clk 0:02:58.3]} 5. exd5 {[%clk 0:02:57.3]}
5... Nf6 {[%clk 0:02:58.2]} 6. Nc3 {[%clk 0:02:39.4]} 6... Nxd5 {[%clk
0:02:57.9]} 7. Bc4 {[%clk 0:02:35.3]} 7... Nb6 {[%clk 0:02:56.4]} 8. Bb3 {[%clk
0:02:34.1]} 8... Bg7 {[%clk 0:02:56.8]} 9. Nf3 {[%clk 0:02:33.5]} 9... O-O
{[%clk 0:02:57]} 10. O-O {[%clk 0:02:33.5]} 10... Nc6 {[%clk 0:02:57.6]} 11. d5
{[%clk 0:02:30.9]} 11... Na5 {[%clk 0:02:56]} 12. Be3 {[%clk 0:02:17.8]} 12...
Nxb3 {[%clk 0:02:54.2]} 13. Qxb3 {[%clk 0:02:14.9]} 13... Bg4 {[%clk 0:02:52]}
14. Nd2 {[%clk 0:02:10.3]} 14... Bxc3 {[%clk 0:02:36.2]} 15. Bxb6 {[%clk
0:02:04.2]} 15... Qxb6 {[%clk 0:02:28.7]} 16. Qxb6 {[%clk 0:02:03.8]} 16... axb6
{[%clk 0:02:29.6]} 17. bxc3 {[%clk 0:02:04.2]} 17... Rfc8 {[%clk 0:02:27.7]} 18.
c4 {[%clk 0:01:54.1]} 18... Be2 {[%clk 0:02:26.6]} 19. Rfc1 {[%clk 0:01:53.9]}
19... Ra4 {[%clk 0:02:27]} 20. Rab1 {[%clk 0:01:44.3]} 20... Rxa2 {[%clk
0:02:24.4]} 21. Nf1 {[%clk 0:01:33]} 21... Rxc4 {[%clk 0:02:22.4]} 22. Rxc4
{[%clk 0:01:30.3]} 22... Bxc4 {[%clk 0:02:23.3]} 23. Ne3 {[%clk 0:01:30.7]}
23... Bd3 {[%clk 0:02:19.3]} 24. Rd1 {[%clk 0:01:27.3]} 24... Be2 {[%clk
0:02:19.1]} 25. Rb1 {[%clk 0:01:26.2]} 25... b5 {[%clk 0:02:19.6]} 26. f3 {[%clk
0:01:25.6]} 26... Bd3 {[%clk 0:02:18]} 27. Rb3 {[%clk 0:01:24.1]} 27... Rd2
{[%clk 0:02:17]} 28. h3 {[%clk 0:01:19.6]} 28... Kf8 {[%clk 0:02:17]} 29. Kh2
{[%clk 0:01:18.5]} 29... Bc4 {[%clk 0:02:17.2]} 30. Nxc4 {[%clk 0:01:17.7]}
30... bxc4 {[%clk 0:02:18.1]} 31. Rxb7 {[%clk 0:01:18]} 31... Rxd5 {[%clk
0:02:18.5]} 32. Rc7 {[%clk 0:01:18.1]} 32... Rd4 {[%clk 0:02:18.8]} 33. Kg3
{[%clk 0:01:18.2]} 33... h5 {[%clk 0:02:12.7]} 34. h4 {[%clk 0:01:17.1]} 34...
e5 {[%clk 0:02:11.8]} 35. Rc5 {[%clk 0:01:16]} 35... f6 {[%clk 0:02:10.5]} 36.
Rc7 {[%clk 0:01:16.2]} 36... Rf4 {[%clk 0:02:07.6]} 37. Kh3 {[%clk 0:01:14.6]}
37... Ke8 {[%clk 0:02:04.2]} 38. Kg3 {[%clk 0:01:13.6]} 38... Kd8 {[%clk
0:02:01.6]} 39. Rc5 {[%clk 0:01:13.6]} 39... Kd7 {[%clk 0:02:01.5]} 40. Kf2
{[%clk 0:01:13.4]} 40... Rxh4 {[%clk 0:02:00.9]} 41. Ke3 {[%clk 0:01:13.5]}
41... Rd4 {[%clk 0:01:58.7]} 42. g3 {[%clk 0:01:12.5]} 42... h4 {[%clk
0:01:58.4]} 43. gxh4 {[%clk 0:01:12.8]} 43... Rxh4 {[%clk 0:01:59.3]} 44. Rd5+
{[%clk 0:01:13.2]} 44... Ke6 {[%clk 0:01:59.2]} 45. Rd8 {[%clk 0:01:13.4]} 45...
Rd4 {[%clk 0:01:58.7]} 46. Rc8 {[%clk 0:01:13.4]} 46... g5 {[%clk 0:01:58.6]}
47. Rc7 {[%clk 0:01:11.9]} 47... Rf4 {[%clk 0:01:58.9]} 48. Rc8 {[%clk 0:01:12]}
48... Kd7 {[%clk 0:01:59.2]} 49. Rf8 {[%clk 0:01:11.2]} 49... Kd6 {[%clk
0:02:00.1]} 50. Rg8 {[%clk 0:01:11.2]} 50... Kc5 {[%clk 0:02:00.3]} 51. Rc8+
{[%clk 0:01:10.3]} 51... Kb4 {[%clk 0:02:00.7]} 52. Rc7 {[%clk 0:01:09.8]} 52...
Kb3 {[%clk 0:02:01]} 53. Rc6 {[%clk 0:01:07.4]} 53... Kc2 {[%clk 0:02:00.9]} 54.
Rxf6 {[%clk 0:01:06]} 54... Rxf6 {[%clk 0:02:01.8]} 0-1

[Event "*** SCC Grand Prix: Titled Tuesday Blitz"]
[Site "Chess.com"]
[Date "2020.06.09"]
[Round "2"]
[White "Nathan_Filgueiras"]
[Black "FMalexhdez"]
[Result "1-0"]
[WhiteElo "2411"]
[BlackElo "2103"]
[TimeControl "180+1"]
[EndTime "9:16:28 PDT"]
[Termination "Nathan_Filgueiras won by resignation"]

1. e4 {[%clk 0:03:00.9]} 1... c5 {[%clk 0:02:56.5]} 2. Nf3 {[%clk 0:03:00.2]}
2... d6 {[%clk 0:02:57]} 3. d4 {[%clk 0:02:59.9]} 3... cxd4 {[%clk 0:02:56.9]}
4. Nxd4 {[%clk 0:03:00.8]} 4... Nf6 {[%clk 0:02:56.7]} 5. Nc3 {[%clk 0:03:01.1]}
5... a6 {[%clk 0:02:57]} 6. h3 {[%clk 0:02:59.8]} 6... e5 {[%clk 0:02:55.3]} 7.
Nde2 {[%clk 0:02:59.4]} 7... h5 {[%clk 0:02:54.7]} 8. Bg5 {[%clk 0:02:57.5]}
8... Nbd7 {[%clk 0:02:49.7]} 9. Ng3 {[%clk 0:02:32]} 9... Nb6 {[%clk 0:02:07.2]}
10. Bxf6 {[%clk 0:02:20]} 10... Qxf6 {[%clk 0:02:03.2]} 11. Nxh5 {[%clk
0:02:20.2]} 11... Qg6 {[%clk 0:01:39.4]} 12. Ng3 {[%clk 0:02:19.1]} 12... Be6
{[%clk 0:01:36.3]} 13. Be2 {[%clk 0:02:15.4]} 13... Be7 {[%clk 0:01:34.6]} 14.
a4 {[%clk 0:01:47.4]} 14... Rc8 {[%clk 0:01:18.2]} 15. a5 {[%clk 0:01:44.5]}
15... Nd7 {[%clk 0:01:17.5]} 16. O-O {[%clk 0:01:31.8]} 16... Bh4 {[%clk
0:01:06.3]} 17. Nf5 {[%clk 0:01:27.2]} 17... Bxf5 {[%clk 0:01:02]} 18. exf5
{[%clk 0:01:28.1]} 18... Qxf5 {[%clk 0:01:02.3]} 19. Bg4 {[%clk 0:01:19.5]}
19... Qg6 {[%clk 0:00:58.5]} 20. Qf3 {[%clk 0:01:04.3]} 20... Rc7 {[%clk
0:00:49.1]} 21. Nd5 {[%clk 0:01:02.5]} 21... Rc4 {[%clk 0:00:37.7]} 22. Bxd7+
{[%clk 0:00:59.5]} 1-0